bitfinex-derivatives/quotes_ETHF0:USTF0_20241018
["timestamp","ask_amount","ask_price","bid_price","bid_amount"]
[1729258341815,4.05203,2618.3,2618.2,0.11947226]
[1729258342009,4.05203,2618.3,2618.2,0.50150226]
[1729258342210,44.0078,2618.5,2618.2,0.11947226]
[1729258342415,40.8,2618.5,2618.3,1.11762216]
[1729258342615,0.382,2618.4,2618.3,1.3801586]
[1729258342815,0.382,2618.4,2618.3,3.05748919]
[1729258343224,0.382,2618.4,2618.3,2.05934059]
[1729258343526,0.382,2618.4,2618.3,1.69277939]
[1729258344615,0.382,2618.4,2618.3,3.05971878]
[1729258345314,0.382,2618.4,2618.3,3.05972878]
[1729258345521,0.382,2618.4,2618.3,1.50164016]
[1729258345722,0.382,2618.4,2618.3,0.50148826]
[1729258346219,0.382,2618.4,2618.3,0.11946672]
[1729258346613,0.382,2618.4,2618.3,0.50148672]
[1729258346820,0.382,2618.4,2618.3,1.50163862]
[1729258347221,0.382,2618.4,2618.3,0.38202]
[1729258347526,0.382,2618.4,2618.3,0.50148681]
[1729258348322,0.382,2618.4,2618.3,0.38202]
[1729258349219,44.735,2618.5,2618.1,0.4326]
[1729258349429,3.36203,2618.3,2618.2,0.38202]
[1729258349823,3.36203,2618.3,2618.1,1.00008477]
[1729258349824,0.38203,2618.2,2618.1,1.00008477]
[1729258350027,0.38205,2618.1,2618.0,1.38214477]
[1729258350223,0.38205,2618.1,2617.9,1.50012715]
[1729258350224,0.80724,2618.2,2618.1,0.38205]
[1729258350416,0.38203,2618.3,2618.2,0.38201]
[1729258351227,0.38203,2618.3,2618.2,0.78771]
[1729258353223,0.38203,2618.3,2618.1,0.3998]
[1729258353224,3.8192,2618.3,2618.1,1.00008477]
[1729258353430,3.93507,2618.3,2617.9,1.38215477]
[1729258353632,0.38206,2618.0,2617.9,1.00008477]
[1729258353826,0.95514,2618.1,2617.7,1.00008477]
[1729258354127,0.95514,2618.1,2617.5,0.38213]
[1729258354128,0.38213,2617.6,2617.5,0.38213]
[1729258354936,0.38212,2617.7,2617.6,0.38211]
[1729258355227,3.58989,2617.8,2617.7,0.38211]
[1729258355416,0.8275,2617.9,2617.8,0.38209]
[1729258355623,7.54952,2618.2,2617.6,5.56259477]
[1729258355624,0.38207,2618.0,2617.6,5.56259477]
[1729258355823,0.38207,2618.0,2617.9,0.38208]
[1729258356232,0.38206,2618.1,2618.0,0.38205]
[1729258356725,7.0284,2618.2,2617.7,1.39878477]
[1729258356942,0.38209,2617.9,2617.8,0.38208]
[1729258357528,0.38209,2617.8,2617.7,0.3987]
[1729258357833,0.38213,2617.6,2617.5,0.38213]
[1729258358130,0.38215,2617.5,2617.4,1.38222477]
[1729258358430,0.38213,2617.6,2617.5,0.38212]
[1729258358624,0.8318,2617.7,2617.3,1.39948477]
[1729258358821,0.38215,2617.4,2617.3,1.78163477]
[1729258359021,0.38215,2617.4,2617.3,1.39948477]
[1729258359226,0.38215,2617.4,2617.2,4.70792715]
[1729258359227,5.03701,2617.6,2617.2,4.20788477]
[1729258359422,0.38216,2617.3,2617.2,3.58998]
[1729258360124,3.2078,2617.9,2617.2,8.02868477]
[1729258360320,0.38211,2617.8,2617.7,0.3821]
[1729258360720,0.8158,2618.0,2617.5,5.06008477]
[1729258360721,0.38212,2617.7,2617.6,0.38211]
[1729258360927,0.38212,2617.7,2617.6,0.4071]
[1729258361731,3.67,2617.8,2617.5,0.81602]
[1729258362036,0.38212,2617.6,2617.5,0.81602]
[1729258363221,0.38212,2617.6,2617.5,0.81603]
[1729258363934,1.77097,2618.0,2617.5,0.4339]
[1729258364130,0.8158,2618.0,2617.5,4.59704]
[1729258364335,0.38208,2617.9,2617.8,0.38208]
[1729258364534,3.6195,2618.2,2617.6,1.00008477]
[1729258364835,0.38204,2618.3,2618.2,0.38203]
[1729258366432,0.38201,2618.4,2618.3,0.382]
[1729258366729,0.38203,2618.3,2618.2,0.38202]
[1729258367633,0.38202,2618.4,2618.3,0.38201]
[1729258367830,0.38203,2618.3,2618.2,0.38202]
[1729258368433,0.38203,2618.3,2618.2,1.38210477]
[1729258368633,0.38203,2618.3,2618.2,0.38202]
[1729258368828,40.8,2618.5,2618.3,0.38201]
[1729258368829,0.38201,2618.4,2618.3,0.38201]
[1729258369037,0.38203,2618.3,2618.2,0.38202]
[1729258373026,0.38203,2618.2,2618.1,1.85358477]
[1729258373242,0.79483,2618.2,2618.1,2.23563477]
[1729258373544,3.67,2618.4,2618.2,0.38202]
[1729258373545,0.38203,2618.3,2618.2,0.38202]
[1729258374337,0.38203,2618.2,2618.1,2.23561477]
[1729258374527,0.38203,2618.2,2618.1,1.97305098]
[1729258374841,0.38208,2617.9,2617.8,1.00008477]
[1729258375133,0.38208,2617.9,2617.5,2.00016954]
[1729258375134,0.38211,2617.7,2617.6,0.4421]
[1729258375334,0.38212,2617.6,2617.3,1.82223477]
[1729258375540,0.38214,2617.5,2617.4,0.38214]
[1729258375938,0.38215,2617.4,2617.3,1.82223477]
[1729258376142,0.38213,2617.6,2617.5,0.38212]
[1729258376740,0.8389,2617.8,2617.3,4.64788477]
[1729258376932,0.38211,2617.7,2617.6,0.38211]
[1729258377430,0.38213,2617.6,2617.5,0.38213]
[1729258377836,0.38211,2617.7,2617.6,0.38211]
[1729258378238,0.38213,2617.6,2617.5,0.38213]
[1729258378934,0.38213,2617.6,2617.5,0.38212]
[1729258379937,2.98,2617.7,2617.6,0.38212]
[1729258379938,0.38211,2617.7,2617.6,0.38212]
[1729258380441,0.38211,2617.7,2617.6,0.38211]
[1729258380637,1.221,2617.8,2617.7,0.38211]
[1729258381344,0.4261,2617.8,2617.7,0.38211]
[1729258381538,0.38208,2618.0,2617.9,0.38207]
[1729258381738,0.38209,2617.9,2617.8,0.38208]
[1729258382429,2.98,2618.0,2617.9,0.38208]
[1729258382430,0.38207,2618.0,2617.9,0.38208]
[1729258382739,0.38207,2618.0,2617.7,3.6427]
[1729258382740,0.8492,2618.2,2617.8,1.00008477]
[1729258382931,3.2078,2618.4,2618.3,0.38202]
[1729258383134,3.58977,2618.7,2618.6,0.38197]
[1729258383545,6.1878,2618.7,2618.4,0.8252]
[1729258383739,0.38199,2618.6,2618.5,0.38198]
[1729258384642,6.1878,2618.7,2618.4,0.8252]
[1729258384643,0.38199,2618.5,2618.4,0.8252]
[1729258384837,0.82359,2618.5,2618.4,1.2072]
[1729258385140,0.38202,2618.4,2618.3,0.38202]
[1729258385542,0.8236,2618.5,2618.4,0.382]
[1729258385845,6.602,2618.7,2618.5,0.38198]
[1729258385846,3.2078,2618.7,2618.5,0.38198]
[1729258386045,3.2078,2618.7,2618.6,0.38197]
[1729258386246,0.4142,2619.1,2618.6,7.14274]
[1729258386442,0.38193,2619.0,2618.9,0.38192]
[1729258386847,0.8558,2619.1,2618.7,0.8667]
[1729258387142,0.38196,2618.7,2618.6,3.58977]
[1729258387344,0.38195,2618.8,2618.7,0.38194]
[1729258387844,0.4365,2619.0,2618.6,3.2078]
[1729258388043,0.38196,2618.7,2618.6,3.58976]
[1729258388339,0.38196,2618.7,2618.6,3.58977]
[1729258388545,0.38196,2618.7,2618.6,0.38197]
[1729258388751,0.38198,2618.6,2618.5,0.38198]
[1729258389248,0.38195,2618.8,2618.7,0.38195]
[1729258389444,0.38197,2618.7,2618.6,0.38196]
[1729258390042,0.95483,2618.9,2618.4,0.8667]
[1729258390340,0.38198,2618.6,2618.5,0.38197]
[1729258390743,0.38199,2618.5,2618.4,1.2487]
[1729258390947,0.38199,2618.5,2618.4,0.8667]
[1729258391134,0.38199,2618.5,2618.4,1.2487]
[1729258391739,0.38199,2618.5,2618.4,0.8667]
[1729258392049,0.4328,2618.6,2618.5,0.38199]
[1729258392247,0.95483,2618.9,2618.4,0.8667]
[1729258392445,0.38198,2618.6,2618.5,0.38197]
[1729258392639,0.38198,2618.6,2618.4,0.8667]
[1729258392640,0.4328,2618.9,2618.4,0.8667]
[1729258392847,0.38197,2618.7,2618.6,0.38197]
[1729258393050,0.4328,2618.9,2618.6,3.2078]
[1729258393346,0.38195,2618.8,2618.7,0.38195]
[1729258393553,0.81475,2618.9,2618.8,0.38195]
[1729258394652,0.38195,2618.8,2618.7,0.38195]
[1729258395050,0.4328,2618.9,2618.7,0.38195]
[1729258395252,0.4328,2618.9,2618.8,0.38195]
[1729258395455,0.81474,2618.9,2618.4,1.82171]
[1729258395747,0.38195,2618.8,2618.6,0.38197]
[1729258396148,0.4328,2618.9,2618.7,0.38196]
[1729258396348,0.38196,2618.7,2618.4,0.8667]
[1729258396539,0.38196,2618.8,2618.6,0.38197]
[1729258396744,0.4328,2618.9,2618.4,0.8667]
[1729258397045,4.05195,2618.8,2618.5,0.38199]
[1729258397250,3.67,2618.8,2618.3,3.2078]
[1729258397442,0.38199,2618.5,2618.3,3.58981]
[1729258397839,0.38198,2618.6,2618.4,0.382]
[1729258398042,0.38198,2618.6,2618.3,3.2078]
[1729258398043,3.6406,2618.9,2618.3,3.2078]
[1729258398244,3.6406,2618.9,2618.8,0.38195]
[1729258398440,4.02254,2618.9,2618.7,0.38195]
[1729258398650,4.02254,2618.9,2618.8,0.38195]
[1729258399356,0.4328,2618.9,2618.8,0.38195]
[1729258399745,0.81473,2618.9,2618.8,0.38195]
[1729258400143,0.4328,2618.9,2618.8,0.38195]
[1729258401757,0.81473,2618.9,2618.8,0.38195]
[1729258402256,0.4328,2618.9,2618.6,0.4398]
[1729258402654,0.38197,2618.6,2618.5,0.81888]
[1729258402959,0.4328,2618.9,2618.5,0.4369]
[1729258403160,0.382,2618.4,2618.3,0.38201]
[1729258403358,3.67,2618.8,2618.1,0.8389]
[1729258403656,0.38199,2618.5,2618.4,0.382]
[1729258403847,0.446,2618.6,2618.4,0.382]
[1729258404047,0.446,2618.6,2618.1,4.0467]
[1729258404258,0.446,2618.6,2618.5,0.38199]
[1729258404649,0.38195,2618.8,2618.4,3.2078]
[1729258404952,0.38195,2618.8,2618.7,0.38196]
[1729258405143,0.8678,2618.9,2618.8,0.38195]
[1729258405349,40.8,2619.5,2619.4,0.38186]
[1729258405756,3.2078,2620.2,2619.4,7.0254]
[1729258406061,0.38179,2619.9,2619.8,0.38179]
[1729258406254,0.4219,2620.0,2619.8,0.38178]
[1729258406255,41.2219,2620.0,2619.8,0.38178]
[1729258406458,41.2219,2620.0,2619.4,4.16243]
[1729258406459,41.60368,2620.0,2619.4,4.16243]
[1729258406665,41.60368,2620.0,2619.8,0.38179]
[1729258406867,41.2219,2620.0,2619.8,0.38179]
[1729258407053,41.2219,2620.0,2619.4,4.16243]
[1729258407359,41.60368,2620.0,2619.9,0.38178]
[1729258408363,41.60367,2620.0,2619.9,0.38178]
[1729258408563,41.2219,2620.0,2619.9,0.38178]
[1729258408860,41.60367,2620.0,2619.9,0.38178]
[1729258410967,45.0387,2620.0,2619.7,0.3818]
[1729258411265,0.38184,2619.6,2619.5,0.38183]
[1729258412264,0.4287,2619.7,2619.6,0.38183]
[1729258412464,41.2219,2620.0,2619.4,3.2078]
[1729258412669,0.38181,2619.8,2619.7,0.3818]
[1729258412862,41.2219,2620.0,2619.4,3.2078]
[1729258413062,0.38181,2619.8,2619.7,0.38181]
[1729258413468,44.8919,2620.0,2619.4,3.2078]
[1729258413674,0.38182,2619.7,2619.6,0.38181]
[1729258414175,3.67,2619.8,2619.4,3.2078]
[1729258414568,0.38184,2619.6,2619.5,0.38183]
[1729258415471,0.4231,2619.7,2619.6,0.38183]
[1729258415862,0.38179,2619.9,2619.8,0.3818]
[1729258417971,6.7968,2619.9,2619.4,3.2078]
[1729258418166,6.7968,2619.9,2619.6,0.38182]
[1729258418167,0.38183,2619.7,2619.6,0.38182]
[1729258418360,2.98,2619.9,2619.4,3.2078]
[1729258418565,0.38181,2619.8,2619.7,0.3818]
[1729258418777,0.38181,2619.8,2619.7,0.38181]
[1729258422377,2.98,2619.9,2619.4,3.2078]
[1729258422572,2.98,2619.9,2619.6,0.38182]
[1729258422573,0.38183,2619.7,2619.6,0.38182]
[1729258422779,0.38183,2619.7,2619.4,4.16245]
[1729258422780,0.38184,2619.6,2619.5,0.38183]
[1729258423181,0.80244,2619.6,2619.5,0.38183]
[1729258423580,0.4206,2619.6,2619.5,0.38183]
[1729258424084,0.38183,2619.7,2619.6,0.38181]
[1729258426683,0.38184,2619.6,2619.5,0.38183]
[1729258427275,3.6284,2619.9,2619.4,0.95463]
[1729258427475,0.38181,2619.8,2619.7,0.3818]
[1729258428373,3.6284,2619.9,2619.4,0.95463]
[1729258428575,3.36186,2619.5,2619.4,0.38184]
[1729258428776,3.36186,2619.5,2619.3,3.2078]
[1729258428777,0.38187,2619.4,2619.3,0.38186]
[1729258431582,0.4304,2619.5,2619.2,1.23957]
[1729258431583,0.38187,2619.3,2619.2,1.23957]
[1729258432483,0.79337,2619.4,2619.3,0.38187]
[1729258434694,0.3819,2619.2,2619.1,0.38189]
[1729258434885,0.3819,2619.1,2619.0,0.8039]
[1729258435190,0.3819,2619.1,2619.0,0.3819]
[1729258435990,2.98,2619.2,2618.8,1.2222]
[1729258436181,0.38193,2618.9,2618.8,0.3904]
[1729258436382,2.98,2618.9,2618.5,0.792]
[1729258436690,0.7984,2618.8,2618.5,0.792]
[1729258436885,0.38197,2618.6,2618.5,1.17397]
[1729258437484,0.38197,2618.6,2618.5,0.792]
[1729258437685,0.38197,2618.6,2618.5,0.3904]
[1729258437879,0.38203,2618.3,2618.2,0.38203]
[1729258438583,0.38201,2618.4,2618.3,0.38201]
[1729258438782,0.4137,2618.5,2618.1,0.8344]
[1729258438983,0.38197,2618.7,2618.6,0.38196]
[1729258439979,0.38197,2618.7,2618.6,0.79446]
[1729258440379,0.4137,2619.1,2618.7,0.38196]
[1729258440584,3.93475,2619.2,2618.6,3.3925]
[1729258440585,3.5986,2619.2,2618.6,3.3925]
[1729258440781,0.3819,2619.1,2619.0,0.3819]
[1729258440990,6.5786,2619.2,2618.7,0.3942]
[1729258441293,2.98,2618.8,2618.6,0.4125]
[1729258441489,0.38197,2618.6,2618.5,3.98938]
[1729258441993,0.3908,2618.7,2618.6,0.38197]
[1729258442293,7.125,2619.4,2618.6,2.98]
[1729258442483,3.5897,2619.2,2619.1,0.3819]
[1729258442785,3.5897,2619.2,2618.6,2.98]
[1729258442786,0.38192,2619.1,2619.0,0.38191]
[1729258442998,0.38194,2618.9,2618.8,0.38193]
[1729258443180,1.33677,2618.9,2618.5,0.38198]
[1729258443385,0.382,2618.4,2618.3,0.8067]
[1729258443580,0.382,2618.4,2618.3,1.18871]
[1729258444098,0.382,2618.4,2618.3,0.8067]
[1729258444593,0.382,2618.4,2618.3,1.18872]
[1729258444885,0.382,2618.4,2618.3,0.8067]
[1729258445091,0.95495,2618.6,2617.9,2.98]
[1729258445288,0.38202,2618.3,2618.2,0.38203]
[1729258445788,0.38202,2618.3,2618.1,0.38203]
[1729258445987,0.38203,2618.2,2618.1,0.38203]
[1729258446384,0.95495,2618.6,2618.0,0.8068]
[1729258446385,0.38205,2618.1,2618.0,0.8068]
[1729258446594,0.38208,2617.9,2617.8,3.2078]
[1729258446984,0.38208,2617.9,2617.8,3.58989]
[1729258447681,0.38208,2617.9,2617.8,3.2078]
[1729258448296,0.38208,2617.9,2617.8,3.58989]
[1729258448484,0.38205,2618.2,2618.1,0.38204]
[1729258448792,0.38207,2618.0,2617.9,0.38206]
[1729258449294,0.38207,2618.0,2617.9,0.38208]
[1729258449490,0.9551,2618.2,2617.8,3.2078]
[1729258449796,0.38208,2617.9,2617.8,3.2078]
[1729258449985,0.38208,2617.9,2617.2,4.16325]
[1729258449986,0.95525,2617.8,2617.2,4.16325]
[1729258450187,0.38213,2617.5,2617.4,0.80774]
[1729258451183,0.38213,2617.5,2617.4,0.4256]
[1729258451386,0.38213,2617.5,2617.4,0.80775]
[1729258452196,0.38213,2617.5,2616.9,3.2078]
[1729258452197,0.38221,2617.0,2616.9,3.2078]
[1729258452391,0.95538,2617.4,2616.6,3.2078]
[1729258452392,0.38224,2616.8,2616.6,3.2078]
[1729258452590,0.38224,2616.8,2616.2,0.99628522]
[1729258452591,2.98,2616.7,2616.2,0.80652]
[1729258452792,2.98,2616.7,2616.2,0.4242]
[1729258452793,0.38231,2616.3,2616.2,0.4242]
[1729258453208,2.98,2616.5,2615.8,0.38237]
[1729258453388,2.98,2616.5,2615.7,3.36239]
[1729258453389,0.38237,2615.9,2615.7,3.36239]
[1729258453590,0.38237,2616.0,2615.7,0.3824]
[1729258453800,0.38235,2616.1,2615.9,0.38236]
[1729258454195,0.38236,2616.0,2615.6,0.4242]
[1729258454395,0.3935,2616.3,2615.6,0.4242]
[1729258454699,0.3935,2616.3,2616.1,0.38233]
[1729258454905,0.77582,2616.3,2616.0,0.38234]
[1729258455086,0.77582,2616.3,2615.8,3.2078]
[1729258455087,0.77582,2616.3,2616.1,0.38233]
[1729258455293,0.3935,2616.3,2616.1,0.38233]
[1729258456103,0.3935,2616.3,2616.2,0.38232]
[1729258456399,0.3935,2616.3,2616.1,0.38233]
[1729258456599,0.3935,2616.3,2615.8,3.2078]
[1729258456901,3.2078,2616.5,2616.4,0.3823]
[1729258457699,2.63396832,2616.5,2616.4,4.2039]
[1729258458210,0.4225,2616.9,2616.4,7.0294]
[1729258458406,0.4225,2616.9,2616.4,3.2078]
[1729258458699,7.3002,2617.3,2616.6,3.2078]
[1729258458700,0.38218,2617.2,2616.6,3.2078]
[1729258458902,3.6302,2617.3,2617.0,0.3822]
[1729258458903,3.2078,2617.3,2617.0,0.3822]
[1729258459116,3.58997,2617.3,2616.7,0.4295]
[1729258459398,3.58997,2617.3,2616.8,0.395]
[1729258459701,3.58997,2617.3,2616.9,0.38222]
[1729258459908,0.38218,2617.2,2617.0,0.3822]
[1729258460403,3.58997,2617.3,2617.1,0.38219]
[1729258460991,0.3989,2617.4,2617.2,0.38218]
[1729258461195,0.3989,2617.4,2616.9,0.95556]
[1729258461196,0.3989,2617.4,2617.3,0.38216]
[1729258461405,3.2078,2617.6,2617.5,0.38213]
[1729258466195,0.4007,2617.8,2617.7,0.38211]
[1729258466604,0.78279,2617.8,2617.7,0.38211]
[1729258467011,0.4007,2617.8,2617.7,0.38211]
[1729258467212,0.4203,2618.2,2617.7,3.82]
[1729258467400,0.4203,2618.2,2618.0,0.38206]
[1729258467401,0.81076,2618.1,2618.0,0.38206]
[1729258467599,0.38207,2618.0,2617.9,0.38206]
[1729258468406,41.2287,2618.1,2617.7,0.3821]
[1729258468607,0.38209,2617.8,2617.7,0.3821]
[1729258468804,0.3821,2617.8,2617.6,3.58991]
[1729258469004,41.2287,2618.1,2617.6,3.2078]
[1729258469201,0.38211,2617.7,2617.6,3.58992]
[1729258469605,0.38211,2617.7,2617.6,3.2078]
[1729258469902,0.38211,2617.7,2617.2,3.2078]
[1729258469903,7.49,2617.7,2617.2,3.2078]
[1729258470108,0.38216,2617.3,2617.2,3.2078]
[1729258470805,0.38222,2616.9,2616.8,3.2078]
[1729258471196,0.38227,2616.6,2616.5,0.38227]
[1729258471396,0.38229,2616.5,2616.4,0.38229]
[1729258471600,0.38227,2616.6,2616.5,0.38228]
[1729258471808,0.4159,2616.8,2616.1,0.42]
[1729258472007,0.3823,2616.4,2616.1,0.42]
[1729258472404,0.3823,2616.4,2616.3,0.38231]
[1729258472701,0.38231,2616.3,2616.2,0.38232]
[1729258472900,3.2078,2616.7,2616.1,0.38233]
[1729258472901,0.95567,2616.6,2616.1,0.38233]
[1729258473106,0.38233,2616.2,2616.1,0.38233]
[1729258473407,0.38232,2616.3,2616.2,0.38232]
[1729258473607,40.8,2616.5,2616.0,0.4095]
[1729258474205,40.8,2616.5,2616.4,0.3823]
[1729258474206,41.18229,2616.5,2616.4,0.3823]
[1729258474406,40.8,2616.5,2616.4,0.3823]
[1729258474710,3.2078,2616.7,2616.6,0.38227]
[1729258475401,41.2159,2616.8,2616.4,0.4055]
[1729258475402,0.4159,2616.8,2616.4,0.4055]
[1729258475603,0.7927,2617.1,2617.0,0.38221]
[1729258475805,0.38222,2617.0,2616.9,0.38222]
[1729258476107,0.38222,2617.0,2616.3,5.02617]
[1729258476108,0.38231,2616.4,2616.3,0.38231]
[1729258476611,3.2078,2616.6,2616.0,0.4158]
[1729258476913,0.38232,2616.3,2616.2,0.38232]
[1729258477117,0.38232,2616.3,2616.1,0.38233]
[1729258477307,0.38232,2616.3,2616.2,0.38232]
[1729258477606,0.38234,2616.2,2616.0,0.4158]
[1729258477804,0.3988,2616.4,2616.0,0.4158]
[1729258478112,0.38231,2616.3,2616.2,0.38232]
[1729258478312,0.3823,2616.4,2616.3,0.3823]
[1729258479816,0.4098,2616.5,2616.0,0.4158]
[1729258480006,4.0798,2616.5,2616.0,0.4158]
[1729258480205,0.38233,2616.2,2616.1,0.38233]
[1729258480809,0.3823,2616.4,2616.3,0.3823]
[1729258481104,4.0798,2616.5,2616.4,0.3823]
[1729258481105,0.79209,2616.5,2616.4,0.3823]
[1729258481410,0.79209,2616.5,2616.0,0.4158]
[1729258481411,0.4098,2616.5,2616.1,0.95586]
[1729258481607,3.67,2617.0,2616.1,4.16366]
[1729258481811,0.38223,2616.9,2616.8,0.38223]
[1729258483211,0.3823,2616.4,2616.3,0.3823]
[1729258483916,0.38233,2616.2,2616.1,0.38233]
[1729258484214,0.38232,2616.3,2616.2,0.38232]
[1729258484411,0.38233,2616.2,2616.1,0.38233]
[1729258484815,0.38232,2616.3,2616.2,0.38232]
[1729258485013,0.80071,2616.4,2616.3,0.38231]
[1729258485313,0.4184,2616.4,2616.0,3.6236]
[1729258485515,0.8007,2616.4,2616.3,0.38231]
[1729258488117,0.8007,2616.4,2616.0,3.6236]
[1729258488118,0.4184,2616.4,2616.0,3.6236]
[1729258488319,0.4184,2616.4,2616.2,0.38232]
[1729258488320,0.38233,2616.3,2616.2,0.38232]
[1729258490221,0.38233,2616.3,2616.0,3.6236]
[1729258490222,0.38234,2616.2,2616.1,0.38233]
[1729258490418,0.38234,2616.2,2616.0,3.6236]
[1729258490419,0.38234,2616.1,2616.0,3.2078]
[1729258490613,3.67,2616.2,2615.9,0.38235]
[1729258490916,0.38239,2615.8,2615.7,0.38239]
[1729258491118,0.3824,2615.7,2615.6,0.7933]
[1729258492028,4.0708,2615.9,2615.6,0.4109]
[1729258492319,0.38241,2615.6,2615.5,0.4173]
[1729258492517,40.8,2615.6,2615.5,0.79973]
[1729258492710,41.18241,2615.6,2615.5,0.79973]
[1729258493022,40.8,2615.6,2615.5,0.79973]
[1729258493515,40.8,2615.6,2615.2,4.58857]
[1729258493516,0.38245,2615.4,2615.3,0.38245]
[1729258493719,40.8,2615.6,2615.3,0.11959684]
[1729258493917,4.05244,2615.4,2615.3,0.38245]
[1729258494119,4.05244,2615.4,2615.3,0.50205152]
[1729258494328,4.05244,2615.4,2615.3,0.38245]
[1729258494708,4.05244,2615.4,2615.2,1.41870208]
[1729258494709,0.38246,2615.3,2615.2,1.37656208]
[1729258494913,4.05245,2615.4,2615.3,0.38246]
[1729258495222,4.05245,2615.4,2615.2,1.37656208]
[1729258495223,0.38246,2615.3,2615.2,1.37656208]
[1729258495517,0.38247,2615.3,2615.2,1.38120313]
[1729258495913,0.38247,2615.3,2615.2,0.38247]
[1729258496315,4.0882,2615.4,2615.3,0.38246]
[1729258496316,4.47065,2615.4,2615.3,0.38246]
[1729258496514,0.80065,2615.4,2615.3,1.38138311]
[1729258497431,0.80065,2615.4,2615.3,0.38246]
[1729258497719,0.80064,2615.4,2615.3,0.38246]
[1729258498714,0.78213,2615.5,2615.4,0.38244]
[1729258498917,0.78213,2615.5,2615.4,1.38163087]
[1729258499323,44.4301,2615.7,2615.4,1.38163087]
[1729258499324,3.6301,2615.7,2615.6,0.38241]
[1729258499629,0.8047,2615.7,2615.6,0.99919087]
[1729258499922,0.38241,2615.6,2615.5,1.38161087]
[1729258500321,0.4223,2615.7,2615.5,0.99919087]
[1729258500520,4.05241,2615.6,2615.5,0.99919087]
[1729258500826,3.67,2615.6,2615.5,0.38243]
[1729258501215,3.67,2615.6,2615.5,1.38162087]
[1729258501619,3.67,2615.6,2615.5,0.38243]
[1729258501820,4.05241,2615.6,2615.5,0.38243]
[1729258502334,3.67,2615.6,2615.5,0.38243]
[1729258502628,0.3824,2615.7,2615.6,0.3824]
[1729258503319,0.38243,2615.6,2615.5,0.38242]
[1729258503523,0.38244,2615.5,2615.4,0.38243]
[1729258504024,0.38248,2615.2,2615.1,0.38248]
[1729258504222,0.38249,2615.1,2614.9,4.97809087]
[1729258504428,0.38249,2615.1,2615.0,0.38249]
[1729258504429,0.3825,2615.1,2615.0,0.38249]
[1729258504919,0.3825,2615.1,2614.9,0.3886]
[1729258504920,0.3825,2615.0,2614.9,0.77111]
[1729258505227,0.95622,2615.1,2614.7,0.99919087]
[1729258505424,3.67,2615.1,2614.6,3.2078]
[1729258505627,4.05249,2615.1,2615.0,0.3825]
[1729258506125,0.38246,2615.3,2615.2,0.38246]
[1729258506330,0.38248,2615.2,2615.1,0.38248]
[1729258506733,4.5056,2615.4,2614.8,0.95632]
[1729258506927,4.5056,2615.4,2614.7,4.20699087]
[1729258506928,3.67,2615.1,2614.7,4.20699087]
[1729258507135,4.0525,2615.1,2615.0,0.38249]
[1729258507316,0.3825,2615.1,2615.0,0.38249]
[1729258507522,0.38248,2615.2,2615.1,0.38248]
[1729258507831,0.38248,2615.2,2614.7,4.16416]
[1729258507832,3.2078,2615.3,2615.2,0.38247]
[1729258508023,3.2078,2615.6,2615.5,0.38243]
[1729258508226,3.2078,2616.0,2615.2,3.67]
[1729258508423,1.22072,2616.3,2615.7,6.8778]
[1729258508620,0.38234,2616.2,2615.8,0.8487]
[1729258508928,0.8384,2616.3,2615.8,0.8487]
[1729258509127,0.38233,2616.2,2616.1,0.38233]
[1729258509324,0.8384,2616.3,2615.8,0.8487]
[1729258509631,0.38236,2616.0,2615.9,0.38237]
[1729258510330,2.98,2616.2,2615.8,0.8487]
[1729258510633,0.38237,2616.0,2615.9,0.38236]
[1729258511128,0.38237,2615.9,2615.8,1.23107]
[1729258511323,0.38236,2616.0,2615.9,0.38237]
[1729258511720,0.38237,2615.9,2615.8,1.23107]
[1729258511921,0.38238,2615.8,2615.7,3.2078]
[1729258512332,0.95583,2616.2,2615.7,3.2078]
[1729258512532,0.38236,2616.0,2615.9,0.38235]
[1729258512927,1.79419,2616.3,2615.9,4.77833]
[1729258512928,0.414,2616.3,2615.9,4.77833]
[1729258513135,0.38229,2616.5,2616.3,0.38231]
[1729258513426,0.8196,2616.7,2615.9,1.41379087]
[1729258513625,0.8196,2616.7,2616.1,0.38233]
[1729258513626,0.38234,2616.2,2616.1,0.38233]
[1729258514933,0.38235,2616.1,2616.0,0.38234]
[1729258515726,0.95579,2616.3,2615.8,0.42]
[1729258515927,0.38237,2615.9,2615.8,0.80237]
[1729258516135,0.38237,2615.9,2615.8,0.38237]
[1729258516337,0.38238,2615.8,2615.7,3.2078]
[1729258517036,0.38238,2615.8,2615.7,3.5902]
[1729258518239,0.38238,2615.8,2615.7,3.2078]
[1729258518934,0.38238,2615.8,2615.7,3.5902]
[1729258519527,0.38238,2615.8,2615.7,0.3824]
[1729258519731,0.3955,2615.9,2615.5,0.8167]
[1729258519934,0.38241,2615.7,2615.6,0.3824]
[1729258521335,0.38241,2615.6,2615.5,1.19912]
[1729258521534,0.38241,2615.6,2615.5,0.80393]
[1729258521730,0.38241,2615.6,2615.5,0.4215]
[1729258521931,0.38245,2615.5,2615.4,0.38243]
[1729258522140,0.95604,2615.6,2615.2,0.4138]
[1729258522339,0.38249,2615.1,2615.0,0.78239]
[1729258522526,0.38249,2615.1,2615.0,0.51951036]
[1729258522726,0.38249,2615.1,2615.0,0.3999]
[1729258522926,0.3825,2615.0,2614.9,0.38251]
[1729258523224,3.67,2615.2,2614.8,0.4136]